Cogmind - Beta 13 @@@ ROGUE MODE // 2024.04.07 @ 12:44:22 Player: dohmmass Result: Destroyed self with Mini Grenade Launcher Performance ------------- Evolutions (1) 500 Regions Visited (2) 400 Robots Destroyed (22) 110 Value Destroyed (518) 518 Prototype IDs (0) 0 Alien Tech Used (0) 0 Bonus (32) 32 TOTAL SCORE: 1560 Bonus ------- High Alert Combat Kills 32 Cogmind --------- Core Integrity 0/400 Matter 275/300 Energy 100/100 System Corruption 0% Temperature Cool (0) Movement Flying (40) Location -9/Materials Parts ------- > --- POWER (1) -------- (None) > --- PROPULSION (2) --- Flight Unit > --- UTILITY (4) ------ (None) > --- WEAPON (2) ------- Mini Grenade Launcher Mini Grenade Launcher > --- INVENTORY (5) ---- Ion Engine Peak State ------------ > --- POWER ------------ Light Ion Engine > --- PROPULSION ------- Wheel Compact Wheel > --- UTILITY ---------- Cooling System Improved Terrain Scanner > --- WEAPON ----------- Medium Laser Medium Laser > --- INVENTORY -------- (None) [Rating: 10] Favorites ----------- Power Light Ion Engine Engine Light Ion Engine Propulsion Wheel Wheel Wheel Flight Unit Flight Unit Utility Improved Terrain Scanner Device Improved Terrain Scanner Weapon Medium Laser Energy Gun Medium Laser Launcher Mini Grenade Launcher Build | -11 -10 -9 ------- Run | Yrd Mat Mat Slots Evolved 2 | . . 2 Power . | . . . Propulsion . | . . . Utility 2 | . . 2 Weapon . | . . . Parts Attached 13 | 6 . 7 Power 3 | 1 . 2 Engine 3 | 1 . 2 Core . | . . . Reactor . | . . . Propulsion 4 | 2 . 2 Treads . | . . . Leg . | . . . Wheel 2 | 2 . . Hover . | . . . Flight 2 | . . 2 Utility 2 | 1 . 1 Device 2 | 1 . 1 Storage . | . . . Processor . | . . . Hackware . | . . . Protection . | . . . Artifact . | . . . Weapon 4 | 2 . 2 Energy Gun 2 | 2 . . Energy Cannon . | . . . Ballistic Gun . | . . . Ballistic Cannon . | . . . Launcher 2 | . . 2 Special Weapon . | . . . Impact Weapon . | . . . Slashing Weapon . | . . . Piercing Weapon . | . . . Special Melee Weapon . | . . . Unidentified Prototypes . | . . . Parts Lost 9 | . . 9 Power 2 | . . 2 Propulsion 3 | . . 3 Utility 2 | . . 2 Weapon 2 | . . 2 Highest Loss Streak 5 | . . 5 To Critical Strikes . | . . . Average Slot Usage (%) 57 | . 85 48 Engine 10 | . 14 8 Wheel 14 | . 28 10 Flight 1 | . . 2 Device 11 | . 14 11 Energy Gun 16 | . 28 13 Launcher 2 | . . 2 Naked Turns 7 | . . 7 Heaviest Build 10 | 8 8 10 Greatest Support 26 | 26 26 26 Greatest Overweight (x) 2 | . . 2 Average Overweight (x) . | . . . Largest Inventory Capacity 5 | 5 5 5 Average Capacity 5 | 5 5 5 Most Carried 5 | 5 . 3 Average Carried . | . . . Final Capacity 5 | 5 5 5 Final Carried 1 | . . 1 Class Distribution -------------------- 100% | Mutant Dominant Class ---------------- Mutant | -10/Materials Mutant | -9/Materials Resources | -11 -10 -9 ----------- Run | Yrd Mat Mat Matter Collected 366 | 226 . 140 Remotely . | . . . Salvage Created 541 | 20 . 521 Parts 39 | 4 . 35 Haulers Intercepted 1 | . . 1 Recyclers Shooed 2 | . . 2 Parts Field Recycled . | . . . Retrieved Matter . | . . . Parts Self-Destructed . | . . . Prevented . | . . . Kills | -11 -10 -9 ------- Run | Yrd Mat Mat Combat Hostiles Destroyed 19 | . . 19 Guns 9 | . . 9 AOE 8 | . . 8 Classes Destroyed 6 | 1 . 5 Builder 1 | . . 1 Tunneler 1 | 1 . . Hauler 1 | . . 1 Swarmer 7 | . . 7 Grunt 11 | . . 11 Duelist 1 | . . 1 Best Kill Streak 10 | 1 . 10 Combat Bots Only 10 | . . 10 Max Kills in Single Turn 4 | 1 . 4 Gunslinging 1 | . . 1 Exploded 3 | . . 3 Melee . | . . . Uniques/NPCs Destroyed . | . . . Combat | -11 -10 -9 -------- Run | Yrd Mat Mat Hostile Shots Fired 123 | . . 123 Missed 38 | . . 38 Damage Taken 884 | . . 884 Core 407 | . . 407 Absorbed by Shields . | . . . Core Remaining (%) 100 | 100 100 . Volleys Fired 50 | 2 . 48 Largest 2 | 2 . 2 Hottest 100 | 100 . 100 Shots Fired 90 | 4 . 86 Gun 79 | 4 . 75 Cannon . | . . . Launcher 11 | . . 11 Special . | . . . Kinetic . | . . . Thermal 79 | 4 . 75 Explosive 11 | . . 11 Electromagnetic . | . . . Robot Hit Streak 17 | 2 . 17 Robot Miss Streak 2 | 1 . 2 Penetration Max . | . . . Secondary Targets 1 | . . 1 Max Gunslinging Chain 1 | . . 1 Shots Hit Robots 63 | 3 . 60 Core Hits 36 | 1 . 35 Critical Kills . | . . . Critical Parts Destroyed . | . . . Critical Strikes 5 | . . 5 Burn 5 | . . 5 Melee Attacks . | . . . Impact . | . . . Slashing . | . . . Piercing . | . . . Sneak Attacks . | . . . Combat Hostiles . | . . . Follow-up Attacks . | . . . Damage Inflicted 1388 | 37 . 1351 Guns 726 | 37 . 689 Cannons . | . . . Explosions 662 | . . 662 Melee . | . . . Ramming . | . . . Kinetic . | . . . Thermal 726 | 37 . 689 Explosive 662 | . . 662 Electromagnetic . | . . . Impact . | . . . Slashing . | . . . Piercing . | . . . Highest Corruption . | . . . Average Corruption . | . . . Corruption Purged . | . . . Corruption Blocked . | . . . Overload Shots . | . . . Overflow Damage 24 | . . 24 Projectiles . | . . . Explosions 24 | . . 24 Melee . | . . . Knockbacks . | . . . Impact . | . . . Kinetic . | . . . Secondary . | . . . Self-Inflicted Damage 72 | . . 72 Shots 2 | . . 2 Rammed 1 | . . 1 Targets Rammed 1 | . . 1 Kicked . | . . . Crushed . | . . . Highest Temperature 78 | 78 . 14 Average Temperature 40 | 43 . 14 Received Heat Transfer 261 | . . 261 Siege Activations . | . . . Robots Corrupted . | . . . Combat Hostiles . | . . . Parts Fried . | . . . Impact Corruptions . | . . . Robots Melted 2 | . . 2 Combat Hostiles 2 | . . 2 Parts Melted 8 | . . 8 Heat Transferred 2516 | 111 . 2405 Parts Sabotaged . | . . . Parts Stolen . | . . . Parts Stripped . | . . . Power Chain Reactions . | . . . Alert | -11 -10 -9 ------- Run | Yrd Mat Mat Peak Influence 490 | 5 18 490 Initial 7 | . 3 7 Average 134 | . 3 201 Maximum Alert Level 2 | . . 2 Low Security (%) 56 | 100 100 35 Level 1 40 | . . 61 Level 2 2 | . . 3 Level 3 . | . . . Level 4 . | . . . Level 5 . | . . . High Security . | . . . Max Security . | . . . Squads Dispatched 1 | . . 1 Investigation . | . . . Extermination . | . . . Reinforcement 1 | . . 1 Assault . | . . . Garrison . | . . . Intercept . | . . . Searches Triggered . | . . . Construction Impeded 1 | . . 1 Haulers Reinforced . | . . . Active Scanning Responses . | . . . Cargo Convoy Interrupts . | . . . Stealth | -11 -10 -9 --------- Run | Yrd Mat Mat Distress Signals 4 | . . 4 Communications Jammed . | . . . Distress Signals . | . . . Times Spotted 29 | . 2 27 Peak Tracking Total 11 | . 2 11 Tactical Retreats 2 | . . 2 Traps | -11 -10 -9 ------- Run | Yrd Mat Mat Traps Triggered . | . . . Indirectly . | . . . Trap Hack Attempts . | . . . Triggered . | . . . Disarmed . | . . . Reprogrammed . | . . . Reused . | . . . Traps Extracted . | . . . Installed . | . . . Triggered . | . . . Machines | -11 -10 -9 ---------- Run | Yrd Mat Mat Machines Disabled . | . . . Max in Single Turn . | . . . Machines Repaired . | . . . Machines Dismantled . | . . . Machines Sabotaged . | . . . Overloaded Fab Kills . | . . . Hacking | -11 -10 -9 --------- Run | Yrd Mat Mat Machines Accessed . | . . . Terminals . | . . . Fabricators . | . . . Repair Stations . | . . . Recycling Units . | . . . Scanalyzers . | . . . Garrison Access . | . . . Total Hacks . | . . . Successful . | . . . Failed . | . . . Catastrophic . | . . . Database Lockouts . | . . . Manual . | . . . Terminals . | . . . Fabricators . | . . . Repair Stations . | . . . Recycling Units . | . . . Scanalyzers . | . . . Garrison Access . | . . . Terminal Hacks . | . . . Fabricator Hacks . | . . . Repair Station Hacks . | . . . Recycling Unit Hacks . | . . . Scanalyzer . | . . . Garrison Access Hacks . | . . . Unauthorized Hacks . | . . . Terminals . | . . . Fabricators . | . . . Repair Stations . | . . . Recycling Units . | . . . Scanalyzers . | . . . Garrison Access . | . . . Data Cores Recovered . | . . . Used . | . . . Hacking Detections . | . . . Full Trace Events . | . . . Feedback Events . | . . . Feedback Blocked . | . . . Robot Schematics Acquired . | . . . Robots Built . | . . . Authchips . | . . . Time . | . . . Total Robot Build Rating . | . . . Part Schematics Acquired . | . . . Parts Built . | . . . Authchips . | . . . Time . | . . . Total Part Build Rating . | . . . Parts Repaired . | . . . Time . | . . . Parts Recycled . | . . . Recycled Matter . | . . . Retrieved Matter . | . . . Retrieved Components . | . . . Parts Scanalyzed . | . . . Part Schematics Acquired . | . . . Parts Damaged . | . . . Bothacking | -11 -10 -9 ------------ Run | Yrd Mat Mat Used RIF Installer . | . . . Robots Hacked . | . . . Non-combat . | . . . Combat . | . . . Robot Hacks Applied . | . . . Relay Couplers Released . | . . . Fabnet Peak Effective % . | . . . Robots Rewired . | . . . Allies Hacked . | . . . Hacks Repelled . | . . . Allies | -11 -10 -9 -------- Run | Yrd Mat Mat Total Allies . | . . . Largest Group . | . . . Highest-Rated Group . | . . . Highest-Rated Ally . | . . . Total Orders . | . . . Ally Attacks . | . . . Total Damage . | . . . Kills . | . . . Allies Corrupted . | . . . Allies Melted . | . . . Intel | -11 -10 -9 ------- Run | Yrd Mat Mat Robot Analysis Total . | . . . Derelict Logs Recovered . | . . . Drone Launches . | . . . Drone Recoveries . | . . . Exploration | -11 -10 -9 ------------- Run | Yrd Mat Mat Turns Passed 439 | 57 91 291 Spaces Moved 285 | 48 102 135 Core 90 | 10 . 80 Treads . | . . . Legs . | . . . Wheels 178 | 38 102 38 Hover . | . . . Flight 17 | . . 17 Fastest Speed 37 | 50 90 37 Average Speed 88 | 81 90 90 Slowest Speed 150 | 90 90 150 Overloaded Moves . | . . . Propulsion Burnouts . | . . . Robots Hopped . | . . . Cave-ins Triggered . | . . . Exploration Rate (%) 19 | 3 25 30 Regions Visited 2 Branch Regions . Pre-discovered Areas . | . . . Known Exits Taken . | . . . Unknown Exits Taken 2 | 1 1 . Scrap Searched . | . . . Spaces Dug . | . . . Terrain Destroyed 48 | . . 48 Melee . | . . . Projectile . | . . . AOE 48 | . . 48 Terrain Rammed . | . . . Walls Destroyed . | . . . Machines Disabled . | . . . Actions | -11 -10 -9 --------- Run | Yrd Mat Mat Total 381 | 61 101 219 Wait 19 | . . 19 Move 283 | 47 101 135 Hop . | . . . Pick Up 14 | 6 . 8 Fast Attach . | . . . Attach 12 | 6 . 6 Detach . | . . . Swap 1 | . . 1 Drop 1 | . . 1 Fire 50 | 2 . 48 Melee . | . . . Ram 1 | . . 1 Kick . | . . . Crush . | . . . Escape Stasis . | . . . Rewire . | . . . Trap . | . . . Miscellaneous . | . . . Route ------- -11/Scrapyard -10/Materials -9/Materials History --------- Turn | Location | Event 6 | -11/Scrapyard | Discovered new exit (range 16) 58 | -11/Scrapyard | Entered Materials 145 | -10/Materials | Discovered new exit (range 4) 149 | -10/Materials | Entered another Materials area 149 | -9/Materials | Evolved 2 slots: Utility x2 302 | -9/Materials | Destroyed 10 combat bots 314 | -9/Materials | Build established: Mutant 335 | -9/Materials | Lost 5 parts (1p2n1u1w) 346 | -9/Materials | Core integrity fell below 50% 404 | -9/Materials | Core integrity fell below 20% 440 | -9/Materials | Destroyed self with Mini Grenade Launcher Last Messages --------------- 00410_ W-16 Scout sends out distress signal. 00413_ Acquired Flight Unit. 00414_ The unstable cave ceiling collapses. 00415_ U-05 Engineer lays Concrete. 00416_ Acquired Flight Unit. 00417_ U-05 Engineer lays Concrete. 00421_ Acquired 100 matter. 00429_ G-34 Mercenary destroyed. 00429_ U-05 Engineer destroyed. 00429_ G-34 Mercenary destroyed. 00430_ Acquired 20 matter. 00432_ G-34 Mercenary destroyed. 00433_ Acquired 20 matter. 00433_ ALERT: Construction progress impeded, dispatching reinforcements to local area. 00436_ G-34 Mercenary destroyed. 00436_ Destroyed Terrain Scanner. 00440_ Flight Unit destroyed. 00440_ Destroyed Flight Unit. [Achievement: Back For More] Map ----- +----------------------------------------------------+ | ?????????????????????????????????????????????????? | | ???????????????????????????????# ????????????????? | | ???????????????????????#????!??# ????????????????? | | ???????????????????????# ??!! ?# ????????????????? | | ???????????????????????# ??!! ## ##???????????#### | | ???????????????????????# ??!! +???????????# | | ??????????????????????## ##]? #???????????# | | ?????????????????????## ]?? #???????????# | | ?????????????????????# ##??# #???????????# | | ?????????????######### ##?# #???????????? | | ?????????????? #?# #?????????????? | | ??????????????? ### #####+########## | | ???????????????? | | ????????????????? | | ?????????????????? """ | | ?????????????????????" [%= r #### | | ?????????????????????? * #??? | | ?????????????????????? [ u=""" """ #??? | | ??????????????????????# Y[""" """ #??? | | ????????????########### =[%""" """ #??? | | ????????? ![! #??? | | ????????? #??? | | ????????? = #??? | | ??????????#########+### =%= ###### #??? | | ?????????????#] % #?????####### #??? | | ?????????????# @""" #???????????# #??? | | ?????????????# """ #???????????# #??? | | ?????????????# # """ #???????????? ???? | | ?????????????# """?#% #??????????????????? | | ?????????????# ""??# #??????????????????? | | ?????????????# "T" ????########??????????????????? | | ?????????????????????????????????????????????????? | | ?????????????????????????????????????????????????? | | ?????????????????????????????????????????????????? | | ?????????????????????????????????????????????????? | | ?????????????????????????????????????????????????? | | ?????????????????????????????????????????????????? | | ?????????????????????????????????????????????????? | | ?????????????????????????????????????????????????? | | ?????????????????????????????????????????????????? | | ?????????????????????????????????????????????????? | | ?????????????????????????????????????????????????? | | | | | | | | | | | | | | | | | +----------------------------------------------------+ Best States ------------- Heat Dissipation 50 Energy Generation 10 Energy Capacity 250 Matter Stores 280 Matter Capacity 300 Sight Range 16 Terrain Scan Range 16 Terrain Scan Density 10 Evasion (%) 62 Item Schematics ----------------- None Robot Schematics ------------------ None Fabricated ------------ Nothing Alien Tech Used ----------------- None Achievements -------------- Back For More Challenges ------------ None Game ------ Seed ColdLaserMantle Manual? 0 Play Time 00:05:49 Cumulative 24.9 hours Start 2024.04.07 @ 12:38:29 End 2024.04.07 @ 12:44:22 Sessions 1 Manual Loads 0 Difficulty Rogue Special Mode None Game No. 50 Rogue 50 Adventurer 0 Explorer 0 Win Type - Total 0 Types 0/0/0/0/0/0/0/0/0 Lore% 16 Gallery% 30 Achievement% 22 Wizard Run 0 Options --------- Layout 1 ASCII 0 Keyboard 0 Movement Mouse Keybinds 0 Fullscreen 1 Font 24/Smallcaps Map View 50x35 Zoom Use 0% Tactical HUD 1 Map Filters NONE Filters NONE Steam 1 RUN: 801550d6-3c28-46b2-b37b-79ea53227265